fUSD/lending_fUSD_20250124
["ID","MTS","AMOUNT","RATE_DAILY","PERIOD"]
[350234039,1737723043234,-528.09,0.00018607,2]
[350234040,1737723043244,-500.0,0.00018607,2]
[350234041,1737723043253,-500.0,0.00018607,2]
[350234042,1737723043264,-500.0,0.00018607,2]
[350234043,1737723043275,-500.0,0.00018607,2]
[350234044,1737723043285,-500.0,0.00018607,2]
[350234045,1737723043294,-500.0,0.00018607,2]
[350234046,1737723043304,-540.34,0.00018607,2]
[350234047,1737723043314,-752.16,0.00018607,2]
[350234048,1737723043323,-522.32,0.00018607,2]
[350234049,1737723043333,-500.0,0.00018607,2]
[350234050,1737723043343,-168.54,0.00018607,2]
[350234051,1737723043352,-500.0,0.00018607,2]
[350234052,1737723043362,-500.0,0.00018607,2]
[350234053,1737723043371,-500.0,0.00018607,2]
[350234054,1737723043381,-678.59,0.00018607,2]
[350234055,1737723043390,-500.0,0.00018607,2]
[350234056,1737723043400,-500.0,0.00018607,2]
[350234057,1737723043410,-702.8,0.00018607,2]
[350234058,1737723043419,-500.0,0.00018607,2]
[350234059,1737723043428,-967.5,0.00018607,2]
[350234060,1737723043438,-500.0,0.00018607,2]
[350234061,1737723043447,-580.01,0.00018607,2]
[350234063,1737723043457,-563.31,0.00018608,2]
[350234065,1737723043467,-500.0,0.00018608,2]
[350234068,1737723043476,-834.62,0.00018608,2]
[350234071,1737723043486,-762.04,0.00018608,2]
[350234074,1737723043495,-525.04,0.00018608,2]
[350234077,1737723043504,-500.0,0.00018608,2]
[350234078,1737723043514,-500.0,0.00018608,2]
[350234079,1737723043523,-500.0,0.00018608,2]
[350234080,1737723043532,-500.0,0.00018608,2]
[350234082,1737723043541,-500.0,0.00018608,2]
[350234083,1737723043550,-847.58,0.00018608,2]
[350234084,1737723043559,-722.85,0.00018608,2]
[350234085,1737723043569,-500.0,0.00018608,2]
[350234086,1737723043579,-500.0,0.00018608,2]
[350234087,1737723043588,-500.0,0.00018608,2]
[350234088,1737723043598,-500.0,0.00018608,2]
[350234089,1737723043607,-939.56,0.00018608,2]
[350234090,1737723043616,-564.14,0.00018608,2]
[350234091,1737723043626,-500.0,0.00018608,2]
[350234092,1737723043636,-500.0,0.00018608,2]
[350234093,1737723043646,-500.0,0.00018608,2]
[350234094,1737723043655,-500.0,0.00018608,2]
[350234095,1737723043665,-1027.86,0.00018608,2]
[350234096,1737723043674,-500.0,0.00018608,2]
[350234097,1737723043684,-655.78,0.00018608,2]
[350234098,1737723043694,-500.0,0.00018608,2]
[350234099,1737723043703,-1010.3,0.00018608,2]
[350234100,1737723043713,-1211.04,0.00018608,2]
[350234101,1737723043723,-500.0,0.00018608,2]
[350234102,1737723043733,-525.39,0.00018608,2]
[350234103,1737723043742,-848.51,0.00018608,2]
[350234104,1737723043751,-500.0,0.00018608,2]
[350234105,1737723043761,-500.0,0.00018608,2]
[350234106,1737723043771,-500.0,0.00018608,2]
[350234107,1737723043781,-500.0,0.00018608,2]
[350234108,1737723043791,-500.0,0.00018608,2]
[350234109,1737723043800,-767.97,0.00018608,2]
[350234110,1737723043810,-500.0,0.00018608,2]
[350234111,1737723043820,-785.11,0.00018608,2]
[350234112,1737723043829,-500.0,0.00018608,2]
[350234113,1737723043839,-701.31,0.00018608,2]
[350234114,1737723043849,-978.33,0.00018608,2]
[350234115,1737723043858,-518.88670747,0.00018608,2]
[350234116,1737723043867,-559.71,0.00018608,2]
[350234117,1737723043877,-500.0,0.00018608,2]
[350234118,1737723043887,-728.39,0.00018608,2]
[350234119,1737723043896,-773.41,0.00018608,2]
[350234120,1737723043905,-826.0,0.00018608,2]
[350234121,1737723043915,-690.82,0.00018608,2]
[350234122,1737723043924,-521.06,0.00018608,2]
[350234123,1737723043934,-500.0,0.00018608,2]
[350234124,1737723043943,-549.06,0.00018608,2]
[350234125,1737723043953,-1940.73,0.00018608,2]
[350234126,1737723043963,-675.72,0.00018608,2]
[350234127,1737723043972,-500.0,0.00018608,2]
[350234128,1737723043982,-3011.49,0.00018608,2]
[350234129,1737723043991,-500.0,0.00018608,2]
[350234130,1737723044000,-862.94,0.00018608,2]
[350234131,1737723044009,-1130.22,0.00018608,2]
[350234132,1737723044019,-1431.6,0.00018608,2]
[350234133,1737723044028,-2349.61,0.00018608,2]
[350234134,1737723044038,-565.09,0.00018608,2]
[350234135,1737723044047,-855.09,0.00018608,2]
[350234136,1737723044056,-1537.55,0.00018608,2]
[350234137,1737723044066,-799.31,0.00018608,2]
[350234138,1737723044075,-2226.9,0.00018608,2]
[350234139,1737723044084,-752.1,0.00018608,2]
[350234140,1737723044094,-674.45,0.00018608,2]
[350234141,1737723044103,-2486.19,0.00018608,2]
[350234142,1737723044113,-5913.15,0.00018608,2]
[350234143,1737723044123,-5059.41,0.00018608,2]
[350234144,1737723044132,-500.0,0.00018608,2]
[350234145,1737723044142,-2389.59,0.00018608,2]
[350234146,1737723044152,-8944.98,0.00018608,2]
[350234147,1737723044161,-572.52,0.00018608,2]
[350234148,1737723044170,-565.49,0.00018608,2]
[350234149,1737723044180,-3488.4,0.00018608,2]
[350234150,1737723044189,-500.0,0.00018608,2]
[350234151,1737723044199,-1079.19,0.00018608,2]
[350234152,1737723044208,-1620.95,0.00018608,2]
[350234153,1737723044217,-500.0,0.00018608,2]
[350234154,1737723044229,-296.70717972,0.00018608,2]
[350234155,1737723044239,-500.0,0.00018608,2]
[350234156,1737723044249,-2116.77,0.00018608,2]
[350234157,1737723044258,-689.42,0.00018608,2]
[350234158,1737723044269,-500.0,0.00018608,2]
[350234159,1737723044279,-5237.7,0.00018608,2]
[350234160,1737723044288,-500.0,0.00018608,2]
[350234161,1737723044298,-521.15,0.00018608,2]
[350234162,1737723044307,-909.88,0.00018608,2]
[350234163,1737723044317,-500.0,0.00018608,2]
[350234164,1737723044327,-502.16,0.00018608,2]
[350234165,1737723044336,-1008.55,0.00018608,2]
[350234166,1737723044346,-741.76,0.00018608,2]
[350234167,1737723044355,-3301.06,0.00018608,2]
[350234168,1737723044369,-500.0,0.00018608,2]
[350234169,1737723044379,-1365.71,0.00018608,2]
[350234170,1737723044388,-500.0,0.00018608,2]
[350234171,1737723044397,-1269.36,0.00018608,2]
[350234172,1737723044407,-1552.17,0.00018608,2]
[350234173,1737723044519,-679.35,0.00018608,2]
[350234174,1737723044529,-500.0,0.00018608,2]
[350234175,1737723044539,-500.0,0.00018608,2]
[350234176,1737723044548,-13900.65,0.00018608,2]
[350234177,1737723044557,-1025.92,0.00018608,2]
[350234178,1737723044567,-614.4,0.00018608,2]
[350234179,1737723044576,-500.0,0.00018608,2]
[350234180,1737723044585,-1000.0,0.00018608,2]
[350234181,1737723044594,-623.7,0.00018608,2]
[350234182,1737723044603,-700.02,0.00018608,2]
[350234183,1737723044613,-670.61,0.00018608,2]
[350234184,1737723044622,-501.72,0.00018608,2]
[350234185,1737723044632,-500.0,0.00018608,2]
[350234186,1737723044641,-500.0,0.00018608,2]
[350234187,1737723044650,-3116.78,0.00018608,2]
[350234188,1737723044659,-822.01,0.00018608,2]
[350234189,1737723044669,-500.0,0.00018608,2]
[350234190,1737723044678,-2512.64,0.00018608,2]
[350234191,1737723044687,-500.0,0.00018608,2]
[350234192,1737723044697,-500.0,0.00018609,2]
[350234193,1737723044706,-500.0,0.00018609,2]
[350234194,1737723044716,-1169.5,0.00018609,2]
[350234195,1737723044725,-505.23,0.00018609,2]
[350234196,1737723044735,-1023.98,0.00018609,2]
[350234197,1737723044744,-500.0,0.00018609,2]
[350234198,1737723044753,-828.26,0.00018609,2]
[350234199,1737723044763,-500.0,0.00018609,2]
[350234200,1737723044772,-500.0,0.00018609,2]
[350234201,1737723044781,-500.0,0.00018609,2]
[350234202,1737723044790,-500.0,0.00018609,2]
[350234203,1737723044799,-719.87,0.00018609,2]
[350234204,1737723044808,-500.0,0.00018609,2]
[350234205,1737723044818,-500.0,0.00018609,2]
[350234206,1737723044828,-500.0,0.00018609,2]
[350234207,1737723044838,-500.0,0.00018609,2]
[350234208,1737723044847,-173.16691744,0.0001861,2]
[350234209,1737723044856,-500.0,0.0001861,2]
[350234210,1737723044866,-2496.0,0.0001861,2]
[350234211,1737723044876,-516.0,0.0001861,2]
[350234212,1737723044885,-150.0,0.00018623,2]
[350234213,1737723044894,-136.664444,0.00018623,2]
[350234214,1737723045544,-13.335556,0.00018623,2]
[350234215,1737723045554,-150.0,0.00018629,2]
[350234216,1737723045564,-158.04184592,0.00018634,2]
[350234217,1737723045573,-150.0,0.00018635,2]
[350234218,1737723045583,-150.0,0.00018635,2]
[350234219,1737723045592,-633.0,0.00018635,2]
[350234220,1737723045601,-500.0,0.00018635,2]
[350234221,1737723045610,-741.41,0.00018635,2]
[350234222,1737723045619,-150.0,0.00018636,2]
[350234223,1737723045628,-2079.27,0.00018636,2]
[350234224,1737723045637,-500.0,0.00018637,2]
[350234225,1737723045646,-2496.0,0.00018637,2]
[350234226,1737723045763,-516.0,0.00018637,2]
[350234227,1737723045773,-150.0,0.00018638,2]
[350234228,1737723045782,-150.0,0.00018642,2]
[350234229,1737723045791,-150.0,0.00018644,2]
[350234230,1737723045800,-231.85602074,0.0001865,2]
[350234231,1737723045809,-500.0,0.0001865,2]
[350234232,1737723045819,-500.0,0.0001865,2]
[350234233,1737723045827,-500.0,0.0001865,2]
[350234234,1737723045836,-500.0,0.0001865,2]
[350234235,1737723045845,-500.0,0.0001865,2]
[350234236,1737723045854,-500.0,0.0001865,2]
[350234237,1737723045863,-500.0,0.0001865,2]
[350234238,1737723045873,-500.0,0.0001865,2]
[350234239,1737723045882,-500.0,0.0001865,2]
[350234240,1737723045891,-500.0,0.0001865,2]
[350234241,1737723045900,-500.0,0.0001865,2]
[350234243,1737723045909,-500.0,0.0001865,2]
[350234244,1737723045918,-500.0,0.0001865,2]
[350234245,1737723045928,-500.0,0.0001865,2]
[350234246,1737723045937,-500.0,0.0001865,2]
[350234247,1737723045946,-500.0,0.0001865,2]
[350234248,1737723045955,-500.0,0.0001865,2]
[350234249,1737723045965,-500.0,0.0001865,2]
[350234250,1737723045975,-500.0,0.0001865,2]
[350234251,1737723045984,-500.0,0.0001865,2]
[350234252,1737723045993,-500.0,0.0001865,2]
[350234253,1737723046002,-500.0,0.0001865,2]
[350234254,1737723046011,-500.0,0.0001865,2]
[350234255,1737723046020,-500.0,0.0001865,2]
[350234256,1737723046030,-500.0,0.0001865,2]
[350234257,1737723046040,-500.0,0.0001865,2]
[350234258,1737723046050,-500.0,0.0001865,2]
[350234259,1737723046060,-150.0,0.00018656,2]
[350234260,1737723046070,-150.0,0.00018656,2]
[350234261,1737723046079,-150.0,0.00018657,2]
[350234262,1737723046088,-150.0,0.00018657,2]
[350234263,1737723046097,-150.0,0.00018664,2]
[350234264,1737723046107,-500.0,0.00018664,2]
[350234265,1737723046116,-2496.0,0.00018664,2]
[350234266,1737723046126,-516.0,0.00018664,2]
[350234267,1737723046135,-150.0,0.00018665,2]
[350234268,1737723046148,-150.0,0.00018665,2]
[350234269,1737723046158,-150.0,0.00018672,2]
[350234270,1737723046167,-150.0,0.00018673,2]
[350234271,1737723046178,-150.0,0.00018674,2]
[350234272,1737723046187,-150.0,0.00018675,2]
[350234273,1737723046197,-150.0,0.00018677,2]
[350234274,1737723046206,-749.74170933,0.0001868,2]
[350234275,1737723046216,-2019.0,0.0001868,2]
[350234276,1737723046229,-1270.0,0.0001868,2]
[350234277,1737723046238,-567.0,0.0001868,2]
[350234278,1737723046247,-727.558,0.0001868,2]
[350234279,1737723046256,-893.0,0.0001868,2]
[350234280,1737723046267,-2948.0,0.0001868,2]
[350234281,1737723046277,-332.977,0.0001868,2]
[350234282,1737723046287,-3986.0,0.0001868,2]
[350234283,1737723046296,-150.665,0.0001868,2]
[350234284,1737723046306,-551.977,0.0001868,2]
[350234285,1737723046316,-150.0,0.0001868,2]
[350234286,1737723046325,-1176.0,0.0001868,2]
[350234287,1737723046335,-3651.995,0.0001868,2]
[350234288,1737723046344,-160.462,0.0001868,2]
[350234289,1737723046354,-269.698,0.0001868,2]
[350234290,1737723046364,-150.162,0.0001868,2]
[350234291,1737723046373,-910.29023297,0.00018681,2]
[350234292,1737723046383,-150.0,0.00018688,2]
[350234293,1737723046392,-150.0,0.00018689,2]
[350234294,1737723046403,-500.0,0.00018692,2]
[350234295,1737723046412,-2496.0,0.00018692,2]
[350234296,1737723046422,-516.0,0.00018692,2]
[350234297,1737723046431,-150.0,0.00018694,2]
[350234298,1737723046441,-150.0,0.00018695,2]
[350234299,1737723046451,-150.0,0.00018697,2]
[350234300,1737723046460,-2090.0,0.000187,2]
[350234301,1737723046469,-150.0,0.00018706,2]
[350234302,1737723046480,-150.0,0.00018707,2]
[350234303,1737723046490,-150.0,0.00018712,2]
[350234304,1737723046500,-1000.0,0.00018714,2]
[350234305,1737723046510,-150.0,0.00018717,2]
[350234306,1737723046520,-500.0,0.00018719,2]
[350234307,1737723046530,-2496.0,0.00018719,2]
[350234308,1737723046539,-516.0,0.00018719,2]
[350234309,1737723046548,-150.0,0.0001873,2]
[350234310,1737723046558,-1737.2740688,0.00018733,2]
[350234311,1737723046567,-3887.5076488,0.00018733,2]
[350234312,1737723046576,-150.0,0.00018738,2]
[350234313,1737723046585,-150.0,0.00018739,2]
[350234314,1737723046595,-150.0,0.00018739,2]
[350234315,1737723046604,-437.52,0.0001874,2]
[350234316,1737723046614,-150.0,0.0001874,2]
[350234317,1737723046623,-1000.0,0.0001874,2]
[350234318,1737723046633,-500.0,0.00018743,2]
[350234319,1737723046643,-500.0,0.00018743,2]
[350234320,1737723046652,-500.0,0.00018743,2]
[350234321,1737723046662,-500.0,0.00018743,2]
[350234322,1737723046671,-500.0,0.00018743,2]
[350234323,1737723046681,-500.0,0.00018743,2]
[350234324,1737723046690,-759.02,0.00018743,2]
[350234325,1737723046700,-500.0,0.00018743,2]
[350234326,1737723046710,-3782.49,0.00018743,2]
[350234327,1737723046719,-500.0,0.00018743,2]
[350234328,1737723046728,-500.0,0.00018743,2]
[350234329,1737723046738,-1473.471276,0.00018743,2]
[350234330,1737723046747,-500.0,0.00018743,2]
[350234331,1737723046756,-500.0,0.00018743,2]
[350234332,1737723046765,-500.0,0.00018743,2]
[350234333,1737723046775,-500.0,0.00018743,2]
[350234334,1737723046784,-467.66987068,0.00018743,2]
[350234335,1737723047047,-572.51762717,0.00018469,2]
[350234336,1737723047064,-310.47040032,0.00018469,2]
[350234337,1737723047077,-309.99197251,0.00018469,2]
[350234338,1737723047191,-1192.98,0.00018606,2]
[350234339,1737723047202,-500.0,0.0001865,2]
[350234340,1737723047212,-104.62802749,0.0001865,2]
[350234341,1737723047241,-395.37197251,0.0001865,2]
[350234342,1737723047251,-500.0,0.0001865,2]
[350234343,1737723047260,-500.0,0.0001865,2]
[350234344,1737723047271,-500.0,0.0001865,2]
[350234345,1737723047280,-32.33012932,0.00018743,2]
[350234346,1737723047289,-1768.05,0.00018743,2]
[350234347,1737723047299,-2714.04,0.00018743,2]
[350234348,1737723047309,-500.0,0.00018743,2]
[350234349,1737723047319,-1054.04527,0.00018743,2]
[350234350,1737723047328,-841.05,0.00018743,2]
[350234351,1737723047337,-403.07534671,0.00018743,2]
[350234352,1737723047347,-500.0,0.00018743,2]
[350234353,1737723047356,-957.66,0.00018743,2]
[350234354,1737723047366,-606.5588803,0.00018743,2]
[350234355,1737723047376,-500.0,0.00018743,2]
[350234356,1737723047385,-684.69,0.00018743,2]
[350234357,1737723047395,-1283.14,0.00018743,2]
[350234358,1737723047405,-1052.43,0.00018743,2]
[350234359,1737723047415,-500.0,0.00018743,2]
[350234360,1737723047424,-3081.6,0.00018743,2]
[350234361,1737723047434,-1339.16,0.00018743,2]
[350234362,1737723047443,-1844.61,0.00018743,2]
[350234363,1737723047452,-873.27,0.00018743,2]
[350234364,1737723047461,-838.95815408,0.00018743,2]
[350234365,1737723047470,-3009.25,0.00018743,2]
[350234366,1737723047480,-500.0,0.00018743,2]
[350234367,1737723047489,-1065.84,0.00018743,2]
[350234368,1737723047498,-1678.13,0.00018743,2]
[350234369,1737723047507,-500.0,0.00018743,2]
[350234370,1737723047516,-515.02,0.00018743,2]
[350234371,1737723047526,-500.0,0.00018743,2]
[350234372,1737723047535,-500.0,0.00018743,2]
[350234373,1737723047545,-1510.58,0.00018743,2]
[350234374,1737723047554,-500.0,0.00018743,2]
[350234375,1737723047564,-695.87,0.00018743,2]
[350234376,1737723047573,-2248.41,0.00018743,2]
[350234377,1737723047582,-511.28,0.00018743,2]
[350234378,1737723047591,-500.0,0.00018743,2]
[350234379,1737723047601,-343.94,0.00018743,2]
[350234380,1737723047610,-1265.3,0.00018743,2]
[350234381,1737723047621,-269.36905345,0.00018743,2]
[350234382,1737723047631,-1326.57,0.00018743,2]
[350234383,1737723047641,-1088.04,0.00018743,2]
[350234384,1737723047650,-4329.02,0.00018743,2]
[350234385,1737723047659,-3185.29,0.00018743,2]
[350234386,1737723047668,-500.0,0.00018743,2]
[350234387,1737723047677,-2674.94,0.00018743,2]
[350234388,1737723047686,-1242.37,0.00018743,2]
[350234389,1737723047696,-3776.37,0.00018743,2]
[350234390,1737723047705,-500.0,0.00018743,2]
[350234391,1737723047715,-788.74,0.00018743,2]
[350234392,1737723047724,-1199.7,0.00018743,2]
[350234393,1737723047733,-1564.8,0.00018743,2]
[350234394,1737723047742,-1607.77,0.00018743,2]
[350234395,1737723047751,-500.0,0.00018743,2]
[350234396,1737723047760,-500.0,0.00018743,2]
[350234397,1737723047769,-500.0,0.00018743,2]
[350234398,1737723047778,-2766.18,0.00018743,2]
[350234399,1737723047787,-500.0,0.00018743,2]
[350234400,1737723047796,-628.64,0.00018743,2]
[350234401,1737723047808,-5176.74,0.00018743,2]
[350234402,1737723047829,-947.98,0.00018743,2]
[350234403,1737723047847,-500.0,0.00018743,2]
[350234404,1737723047866,-1945.88,0.00018743,2]
[350234405,1737723047883,-500.0,0.00018743,2]
[350234406,1737723047899,-500.0,0.00018743,2]
[350234407,1737723047919,-2081.44,0.00018743,2]
[350234408,1737723047937,-1131.39,0.00018743,2]
[350234409,1737723047957,-500.0,0.00018743,2]
[350234410,1737723047973,-921.68,0.00018743,2]
[350234411,1737723047991,-1652.96,0.00018743,2]
[350234412,1737723048009,-844.93,0.00018743,2]
[350234413,1737723048026,-718.28,0.00018743,2]
[350234414,1737723048042,-4016.52,0.00018743,2]
[350234415,1737723048059,-500.0,0.00018743,2]
[350234416,1737723048074,-1176.47,0.00018743,2]
[350234417,1737723048088,-553.36,0.00018743,2]
[350234418,1737723048104,-500.0,0.00018743,2]
[350234419,1737723048118,-1570.74,0.00018743,2]
[350234420,1737723048133,-1192.98,0.00018743,2]
[350234421,1737723048148,-626.89,0.00018743,2]
[350234422,1737723048163,-500.0,0.00018744,2]
[350234423,1737723048177,-500.0,0.00018744,2]
[350234424,1737723048192,-561.45646932,0.00018744,2]
[350234425,1737723048206,-500.0,0.00018744,2]
[350234426,1737723048222,-500.0,0.00018744,2]
[350234427,1737723048243,-500.0,0.00018744,2]
[350234428,1737723048258,-500.0,0.00018744,2]
[350234429,1737723048273,-500.0,0.00018744,2]
[350234430,1737723048288,-500.0,0.00018744,2]
[350234431,1737723048303,-500.0,0.00018744,2]
[350234432,1737723048319,-1131.84,0.00018744,2]
[350234433,1737723048335,-500.0,0.00018744,2]
[350234434,1737723048349,-500.0,0.00018744,2]
[350234435,1737723048364,-689.98,0.00018744,2]
[350234436,1737723048378,-500.0,0.00018744,2]
[350234437,1737723048394,-500.0,0.00018744,2]
[350234438,1737723048409,-500.0,0.00018744,2]
[350234439,1737723048424,-500.0,0.00018744,2]
[350234440,1737723048439,-500.0,0.00018744,2]
[350234441,1737723048453,-500.0,0.00018744,2]
[350234442,1737723048469,-500.0,0.00018744,2]
[350234443,1737723048485,-500.0,0.00018744,2]
[350234444,1737723048500,-500.0,0.00018744,2]
[350234445,1737723048516,-414.85963809,0.00018744,2]
[350234446,1737723048531,-500.0,0.00018744,2]
[350234447,1737723048547,-616.67,0.00018744,2]
[350234448,1737723048562,-500.0,0.00018744,2]
[350234449,1737723048578,-500.0,0.00018744,2]
[350234450,1737723048594,-500.0,0.00018744,2]
[350234451,1737723048603,-500.0,0.00018744,2]
[350234452,1737723048614,-643.5,0.00018744,2]
[350234453,1737723048624,-500.0,0.00018744,2]
[350234454,1737723048637,-500.0,0.00018744,2]
[350234455,1737723048647,-672.57,0.00018744,2]
[350234456,1737723048656,-500.0,0.00018744,2]
[350234457,1737723048667,-590.22,0.00018744,2]
[350234458,1737723048676,-500.0,0.00018744,7]
[350234459,1737723048686,-500.0,0.00018744,2]
[350234460,1737723048696,-1064.78,0.00018744,2]
[350234461,1737723048705,-500.0,0.00018744,2]
[350234462,1737723048714,-500.0,0.00018744,2]
[350234463,1737723048724,-500.0,0.00018744,2]
[350234464,1737723048734,-1276.14,0.00018744,2]
[350234465,1737723048744,-689.28,0.00018744,2]
[350234466,1737723048754,-500.0,0.00018744,2]
[350234467,1737723048763,-500.0,0.00018744,2]
[350234468,1737723049007,-500.0,0.00018744,2]
[350234469,1737723049032,-852.42,0.00018744,2]
[350234470,1737723049045,-500.0,0.00018744,2]
[350234471,1737723049055,-648.09,0.00018744,2]
[350234472,1737723049064,-945.88,0.00018744,2]
[350234473,1737723049073,-644.09,0.00018744,2]
[350234474,1737723049082,-878.43,0.00018744,2]
[350234475,1737723049091,-500.0,0.00018744,2]
[350234476,1737723049101,-598.96,0.00018744,2]
[350234477,1737723049110,-997.58,0.00018744,2]
[350234478,1737723049119,-578.5,0.00018744,2]
[350234479,1737723049128,-500.0,0.00018744,2]
[350234480,1737723049137,-500.0,0.00018744,2]
[350234481,1737723049147,-500.0,0.00018744,2]
[350234482,1737723049155,-500.0,0.00018744,2]
[350234483,1737723049164,-500.0,0.00018744,2]
[350234484,1737723049174,-500.0,0.00018744,2]
[350234485,1737723049204,-500.0,0.00018744,2]
[350234486,1737723049214,-500.0,0.00018744,2]
[350234487,1737723049225,-500.0,0.00018744,2]
[350234488,1737723049238,-853.03,0.00018744,2]
[350234489,1737723049247,-500.0,0.00018744,2]
[350234490,1737723049256,-500.0,0.00018744,2]
[350234491,1737723049266,-500.0,0.00018744,2]
[350234492,1737723049276,-500.0,0.00018744,2]
[350234493,1737723049285,-500.0,0.00018744,2]
[350234494,1737723049295,-500.0,0.00018744,2]
[350234495,1737723049305,-726.2,0.00018744,2]
[350234496,1737723049314,-500.0,0.00018744,2]
[350234497,1737723049324,-944.76,0.00018744,2]
[350234498,1737723049333,-1114.8,0.00018744,2]
[350234499,1737723049342,-500.0,0.00018744,2]
[350234500,1737723049352,-500.0,0.00018744,2]
[350234501,1737723049362,-500.0,0.00018744,2]
[350234502,1737723049373,-500.0,0.00018744,2]
[350234503,1737723049383,-587.21955771,0.00018744,2]
[350234504,1737723049393,-275.86133771,0.00018744,2]
[350234505,1737723049403,-546.54,0.00018744,2]
[350234506,1737723049412,-500.0,0.00018744,2]
[350234507,1737723049422,-178.14887726,0.00018744,2]
[350234508,1737723049431,-500.0,0.00018744,2]
[350234509,1737723049440,-500.0,0.00018744,2]
[350234510,1737723049450,-500.0,0.00018744,2]
[350234511,1737723049459,-1230.54,0.00018744,2]
[350234512,1737723049468,-500.0,0.00018744,2]
[350234513,1737723049477,-500.0,0.00018744,2]
[350234514,1737723049486,-944.05,0.00018744,2]
[350234515,1737723049495,-500.0,0.00018744,2]
[350234516,1737723049504,-151.0,0.00018744,2]
[350234517,1737723049514,-151.394012,0.00018744,2]
[350234518,1737723049523,-500.0,0.00018744,2]
[350234519,1737723049533,-1227.78,0.00018744,2]
[350234520,1737723049542,-500.0,0.00018744,2]
[350234521,1737723049551,-1105.35,0.00018744,2]
[350234522,1737723049560,-500.0,0.00018744,2]
[350234523,1737723049570,-612.82793349,0.00018744,2]
[350234524,1737723049579,-500.0,0.00018744,2]
[350234525,1737723049588,-500.0,0.00018744,2]
[350234526,1737723049598,-528.09,0.00018744,2]
[350234527,1737723049607,-500.0,0.00018744,2]
[350234528,1737723049617,-151.0,0.00018744,2]
[350234529,1737723049626,-500.0,0.00018744,2]
[350234530,1737723049636,-500.0,0.00018744,2]
[350234531,1737723049646,-293.79437,0.00018744,2]
[350234532,1737723049655,-293.79437,0.00018744,2]
[350234533,1737723049665,-500.0,0.00018744,2]
[350234534,1737723049674,-2978.798657,0.00018744,2]
[350234535,1737723049684,-2978.798657,0.00018744,2]
[350234536,1737723049693,-10000.0,0.00018744,2]
[350234537,1737723049702,-500.0,0.00018744,2]
[350234538,1737723049712,-151.0,0.00018744,2]
[350234539,1737723049721,-10000.0,0.00018744,2]
[350234540,1737723049730,-500.0,0.00018744,2]
[350234541,1737723049740,-10000.0,0.00018744,2]
[350234542,1737723049749,-397.235591,0.00018744,2]
[350234543,1737723049758,-540.34,0.00018744,2]
[350234544,1737723049768,-752.16,0.00018744,2]
[350234545,1737723049778,-397.235591,0.00018744,2]
[350234546,1737723049787,-151.0,0.00018744,2]
[350234547,1737723049796,-522.32,0.00018744,2]
[350234548,1737723049805,-151.0,0.00018744,2]
[350234549,1737723049814,-500.0,0.00018744,2]
[350234550,1737723049823,-500.0,0.00018744,2]